[Event "Late-Titled-Tuesday-Blitz-April-30-2024"]
[Site "Chess.com"]
[Date "2024.04.30"]
[Round "11"]
[White "h4parah5"]
[Black "Alex_Sahakyan2006"]
[Result "0-1"]
[WhiteElo "3015"]
[BlackElo "2853"]
[TimeControl "180+1"]
[EndTime "16:03:39 PDT"]
[Termination "Alex_Sahakyan2006 won by checkmate"]

1. Nf3 {[%clk 0:03:00.9]} 1... d5 {[%clk 0:02:59.9]} 2. c4 {[%clk 0:03:01.5]}
2... d4 {[%clk 0:02:59.2]} 3. b4 {[%clk 0:03:01.8]} 3... c5 {[%clk 0:02:55.9]}
4. Bb2 {[%clk 0:03:01.3]} 4... Nf6 {[%clk 0:02:55.2]} 5. bxc5 {[%clk 0:02:58.7]}
5... Nc6 {[%clk 0:02:54.4]} 6. g3 {[%clk 0:02:57.7]} 6... e5 {[%clk 0:02:54.6]}
7. d3 {[%clk 0:02:58.1]} 7... Bxc5 {[%clk 0:02:24.5]} 8. Bg2 {[%clk 0:02:57.7]}
8... O-O {[%clk 0:02:23.7]} 9. O-O {[%clk 0:02:57.2]} 9... Re8 {[%clk
0:02:24.3]} 10. Ba3 {[%clk 0:02:55.2]} 10... Bxa3 {[%clk 0:02:22]} 11. Nxa3
{[%clk 0:02:56.1]} 11... Nd7 {[%clk 0:02:20.4]} 12. Nd2 {[%clk 0:02:51.5]} 12...
Nc5 {[%clk 0:02:20.7]} 13. Nb3 {[%clk 0:02:51.3]} 13... Na4 {[%clk 0:02:14.9]}
14. Qd2 {[%clk 0:02:50.2]} 14... Qe7 {[%clk 0:02:10.8]} 15. Nc2 {[%clk
0:02:43.1]} 15... Bf5 {[%clk 0:02:09.1]} 16. Rfe1 {[%clk 0:02:39.6]} 16... Rad8
{[%clk 0:02:09]} 17. Na5 {[%clk 0:02:36.7]} 17... e4 {[%clk 0:02:05.1]} 18. Nxc6
{[%clk 0:02:32.6]} 18... bxc6 {[%clk 0:02:05.6]} 19. Qf4 {[%clk 0:02:31.6]}
19... Bg6 {[%clk 0:01:49.5]} 20. h4 {[%clk 0:02:22.3]} 20... Nc3 {[%clk
0:01:45.8]} 21. Kh2 {[%clk 0:02:21.5]} 21... Qc5 {[%clk 0:01:35]} 22. Qd2 {[%clk
0:02:17]} 22... Bh5 {[%clk 0:01:02.1]} 23. e3 {[%clk 0:02:11.3]} 23... exd3
{[%clk 0:00:58.3]} 24. Nxd4 {[%clk 0:02:08.8]} 24... Ne4 {[%clk 0:00:37.3]} 25.
Bxe4 {[%clk 0:02:07.5]} 25... Rxe4 {[%clk 0:00:37.5]} 26. Qxd3 {[%clk
0:02:07.3]} 26... Qe5 {[%clk 0:00:36.4]} 27. Qc3 {[%clk 0:01:58.2]} 27... Rxh4+
{[%clk 0:00:35.7]} 28. Kg1 {[%clk 0:01:58.3]} 28... Rh3 {[%clk 0:00:16.7]} 29.
Kg2 {[%clk 0:01:53]} 29... Bg4 {[%clk 0:00:13.1]} 30. Rh1 {[%clk 0:01:48.7]}
30... Qh5 {[%clk 0:00:11.2]} 31. Rxh3 {[%clk 0:01:44.5]} 31... Qxh3+ {[%clk
0:00:10.4]} 32. Kg1 {[%clk 0:01:44.9]} 32... h6 {[%clk 0:00:08]} 33. Qa5 {[%clk
0:01:44.2]} 33... Rxd4 {[%clk 0:00:06.9]} 34. exd4 {[%clk 0:00:59.7]} 34... Bf3
{[%clk 0:00:06.9]} 35. Qd8+ {[%clk 0:01:00.5]} 35... Kh7 {[%clk 0:00:07.1]} 36.
Qh4 {[%clk 0:01:01.4]} 36... Qg2# {[%clk 0:00:07.3]} 0-1

[Event "Late-Titled-Tuesday-Blitz-April-30-2024"]
[Site "Chess.com"]
[Date "2024.04.30"]
[Round "11"]
[White "cthulhuuu"]
[Black "balachess2006"]
[Result "1/2-1/2"]
[WhiteElo "2497"]
[BlackElo "2678"]
[TimeControl "180+1"]
[EndTime "16:03:40 PDT"]
[Termination "Game drawn by repetition"]

1. e4 {[%clk 0:02:59.9]} 1... c5 {[%clk 0:03:00.1]} 2. Nf3 {[%clk 0:03:00.1]}
2... Nc6 {[%clk 0:03:00.4]} 3. g3 {[%clk 0:03:00.3]} 3... g6 {[%clk 0:03:00.3]}
4. Bg2 {[%clk 0:03:01]} 4... Bg7 {[%clk 0:03:00.6]} 5. O-O {[%clk 0:03:01.2]}
5... e5 {[%clk 0:02:57.7]} 6. d3 {[%clk 0:03:01.4]} 6... Nge7 {[%clk 0:02:57.8]}
7. Nc3 {[%clk 0:03:02.1]} 7... O-O {[%clk 0:02:57.9]} 8. Nd2 {[%clk 0:03:02.9]}
8... d6 {[%clk 0:02:57.8]} 9. Nc4 {[%clk 0:03:03.6]} 9... Be6 {[%clk 0:02:57.2]}
10. Nd5 {[%clk 0:03:04.3]} 10... Bxd5 {[%clk 0:02:56.8]} 11. exd5 {[%clk
0:03:05.2]} 11... Na5 {[%clk 0:02:57.4]} 12. Ne3 {[%clk 0:03:01.4]} 12... b5
{[%clk 0:02:54.5]} 13. Bd2 {[%clk 0:02:50.5]} 13... Nb7 {[%clk 0:02:54.4]} 14.
a4 {[%clk 0:02:47]} 14... a6 {[%clk 0:02:54.4]} 15. c3 {[%clk 0:02:43.4]} 15...
f5 {[%clk 0:02:53.4]} 16. f4 {[%clk 0:02:32.2]} 16... exf4 {[%clk 0:02:49.2]}
17. gxf4 {[%clk 0:02:33.1]} 17... Qb6 {[%clk 0:02:49.3]} 18. Qb3 {[%clk
0:02:26.9]} 18... Na5 {[%clk 0:02:46.4]} 19. Qa2 {[%clk 0:02:22]} 19... b4
{[%clk 0:02:44.5]} 20. Nc4 {[%clk 0:02:09.9]} 20... Nxc4 {[%clk 0:02:41.3]} 21.
Qxc4 {[%clk 0:02:10.8]} 21... bxc3 {[%clk 0:02:39.3]} 22. bxc3 {[%clk
0:02:07.7]} 22... Rfb8 {[%clk 0:02:38.5]} 23. a5 {[%clk 0:01:46.9]} 23... Qb5
{[%clk 0:02:35.2]} 24. Kf2 {[%clk 0:01:11.3]} 24... Qxc4 {[%clk 0:02:34]} 25.
dxc4 {[%clk 0:01:12.2]} 25... Rb2 {[%clk 0:02:34.2]} 26. Ke3 {[%clk 0:01:12]}
26... Rab8 {[%clk 0:02:29.8]} 27. Kd3 {[%clk 0:01:09.9]} 27... Kf7 {[%clk
0:02:29.4]} 28. Bf3 {[%clk 0:01:03.4]} 28... Ng8 {[%clk 0:02:25.8]} 29. Rfe1
{[%clk 0:01:01.4]} 29... Bf8 {[%clk 0:02:16.4]} 30. Re2 {[%clk 0:00:23.4]} 30...
Nf6 {[%clk 0:02:09.3]} 31. h4 {[%clk 0:00:19.1]} 31... h5 {[%clk 0:02:01.8]} 32.
Bc1 {[%clk 0:00:16.5]} 32... Rxe2 {[%clk 0:02:01.3]} 33. Bxe2 {[%clk 0:00:17.4]}
33... Ne4 {[%clk 0:01:57.5]} 34. Bf3 {[%clk 0:00:15.9]} 34... Nf6 {[%clk
0:01:57]} 35. Kc2 {[%clk 0:00:15.4]} 35... Be7 {[%clk 0:01:54.1]} 36. Be3 {[%clk
0:00:12]} 36... Bd8 {[%clk 0:01:52.8]} 37. Bf2 {[%clk 0:00:12]} 37... Rb7 {[%clk
0:01:48.9]} 38. Ra2 {[%clk 0:00:12.1]} 38... Ng4 {[%clk 0:01:42.8]} 39. Bxg4
{[%clk 0:00:12]} 39... hxg4 {[%clk 0:01:43.7]} 40. Ra1 {[%clk 0:00:11.2]} 40...
Kg8 {[%clk 0:01:38.7]} 41. Kd3 {[%clk 0:00:10.1]} 41... Bf6 {[%clk 0:01:36.7]}
42. Re1 {[%clk 0:00:09.5]} 42... Kf7 {[%clk 0:01:36.4]} 43. Kc2 {[%clk
0:00:08.4]} 43... Bd8 {[%clk 0:01:34.2]} 44. Ra1 {[%clk 0:00:08.7]} 44... Re7
{[%clk 0:01:33.7]} 45. Kd3 {[%clk 0:00:07.8]} 45... Rb7 {[%clk 0:01:29.9]} 46.
Kc2 {[%clk 0:00:07.4]} 1/2-1/2

[Event "Late-Titled-Tuesday-Blitz-April-30-2024"]
[Site "Chess.com"]
[Date "2024.04.30"]
[Round "11"]
[White "CarrotsandPizza"]
[Black "Blampman"]
[Result "1-0"]
[WhiteElo "2578"]
[BlackElo "2438"]
[TimeControl "180+1"]
[EndTime "16:03:47 PDT"]
[Termination "CarrotsandPizza won by resignation"]

1. e4 {[%clk 0:03:00.9]} 1... c5 {[%clk 0:02:58.1]} 2. Nf3 {[%clk 0:02:59.2]}
2... e6 {[%clk 0:02:58]} 3. d4 {[%clk 0:02:59.6]} 3... cxd4 {[%clk 0:02:58.9]}
4. Nxd4 {[%clk 0:02:59.8]} 4... Nc6 {[%clk 0:02:59.4]} 5. Nxc6 {[%clk
0:02:59.7]} 5... bxc6 {[%clk 0:03:00.3]} 6. Nd2 {[%clk 0:02:59.9]} 6... Qc7
{[%clk 0:03:00.8]} 7. Bd3 {[%clk 0:02:59.1]} 7... Rb8 {[%clk 0:03:01.3]} 8. O-O
{[%clk 0:02:58.9]} 8... Nf6 {[%clk 0:03:01.7]} 9. Re1 {[%clk 0:02:49.3]} 9... e5
{[%clk 0:03:00.3]} 10. Nc4 {[%clk 0:02:45.5]} 10... Bc5 {[%clk 0:02:58.1]} 11.
Bg5 {[%clk 0:02:42.3]} 11... Be7 {[%clk 0:02:52.5]} 12. Bd2 {[%clk 0:02:42.1]}
12... O-O {[%clk 0:02:47.9]} 13. Ba5 {[%clk 0:02:42]} 13... Qb7 {[%clk
0:02:37.1]} 14. Nxe5 {[%clk 0:02:35.9]} 14... Qxb2 {[%clk 0:02:35.3]} 15. Nc4
{[%clk 0:02:33]} 15... Qb7 {[%clk 0:02:23]} 16. e5 {[%clk 0:02:28.4]} 16... Nd5
{[%clk 0:02:20.5]} 17. Qh5 {[%clk 0:02:19.2]} 17... g6 {[%clk 0:02:19.8]} 18.
Qh6 {[%clk 0:02:19.2]} 18... Qb5 {[%clk 0:01:52.7]} 19. Bc7 {[%clk 0:01:47.9]}
19... Nxc7 {[%clk 0:01:45.8]} 20. Re3 {[%clk 0:01:45]} 20... d5 {[%clk
0:01:10.2]} 21. exd6 {[%clk 0:01:37.2]} 21... Bf6 {[%clk 0:01:08.7]} 22. dxc7
{[%clk 0:01:21.8]} 22... Rb7 {[%clk 0:01:04.8]} 23. Nd6 {[%clk 0:01:14.3]} 23...
Qb2 {[%clk 0:01:03]} 24. Rae1 {[%clk 0:01:11.3]} 24... Rxc7 {[%clk 0:00:59.5]}
25. Nxc8 {[%clk 0:01:09]} 25... Rcxc8 {[%clk 0:00:58.4]} 26. Rh3 {[%clk
0:01:08.3]} 26... Rfe8 {[%clk 0:00:46.2]} 27. Qxh7+ {[%clk 0:01:08]} 27... Kf8
{[%clk 0:00:46.8]} 28. Rd1 {[%clk 0:01:04.2]} 28... Bg7 {[%clk 0:00:41.6]} 29.
Qh4 {[%clk 0:01:03.4]} 29... Qf6 {[%clk 0:00:40.8]} 30. Qb4+ {[%clk 0:01:02.2]}
30... c5 {[%clk 0:00:38.6]} 31. Qb3 {[%clk 0:00:58.3]} 31... Qe6 {[%clk
0:00:36.8]} 32. Bc4 {[%clk 0:00:57.1]} 32... Qg4 {[%clk 0:00:22.9]} 33. Rf3
{[%clk 0:00:56.2]} 33... Rc7 {[%clk 0:00:20.5]} 34. h3 {[%clk 0:00:54.8]} 34...
Qe4 {[%clk 0:00:15.4]} 35. Bxf7 {[%clk 0:00:49.4]} 35... Rb7 {[%clk 0:00:12]}
36. Bd5+ {[%clk 0:00:47.3]} 36... Qxf3 {[%clk 0:00:11.8]} 37. Qxf3+ {[%clk
0:00:46.2]} 1-0

[Event "Late-Titled-Tuesday-Blitz-April-30-2024"]
[Site "Chess.com"]
[Date "2024.04.30"]
[Round "11"]
[White "Cacriefils1984"]
[Black "masterofpuppets2"]
[Result "0-1"]
[WhiteElo "2352"]
[BlackElo "2457"]
[TimeControl "180+1"]
[EndTime "16:03:48 PDT"]
[Termination "masterofpuppets2 won by checkmate"]

1. e4 {[%clk 0:03:00.9]} 1... e5 {[%clk 0:02:59.9]} 2. Nf3 {[%clk 0:03:00.7]}
2... Nc6 {[%clk 0:03:00.5]} 3. Bc4 {[%clk 0:03:01]} 3... Nf6 {[%clk 0:03:00.3]}
4. Ng5 {[%clk 0:03:01.3]} 4... d5 {[%clk 0:03:00.5]} 5. exd5 {[%clk 0:03:01.5]}
5... Na5 {[%clk 0:03:01.2]} 6. Bb5+ {[%clk 0:03:01.7]} 6... c6 {[%clk
0:03:01.9]} 7. dxc6 {[%clk 0:03:02.4]} 7... bxc6 {[%clk 0:03:02.8]} 8. Bd3
{[%clk 0:03:02.6]} 8... Nd5 {[%clk 0:03:02.6]} 9. h4 {[%clk 0:03:02.9]} 9... Nf4
{[%clk 0:02:55.7]} 10. Bf1 {[%clk 0:03:01.3]} 10... h6 {[%clk 0:02:53.7]} 11.
Ne4 {[%clk 0:02:42.4]} 11... Be7 {[%clk 0:02:43.9]} 12. g3 {[%clk 0:02:24.4]}
12... Nd5 {[%clk 0:02:43.2]} 13. Nec3 {[%clk 0:02:10.8]} 13... O-O {[%clk
0:02:42.6]} 14. Bg2 {[%clk 0:02:08.3]} 14... f5 {[%clk 0:02:29.9]} 15. d3 {[%clk
0:02:07.2]} 15... f4 {[%clk 0:02:20.7]} 16. Qe2 {[%clk 0:01:59.3]} 16... Kh8
{[%clk 0:02:04.9]} 17. a3 {[%clk 0:01:52.1]} 17... fxg3 {[%clk 0:02:03.6]} 18.
fxg3 {[%clk 0:01:51.6]} 18... Rb8 {[%clk 0:01:41.6]} 19. b4 {[%clk 0:01:42.4]}
19... Nb7 {[%clk 0:01:39.1]} 20. Bb2 {[%clk 0:01:42.9]} 20... a5 {[%clk
0:01:36.8]} 21. b5 {[%clk 0:01:38.1]} 21... Nc5 {[%clk 0:01:28.4]} 22. a4 {[%clk
0:01:27.2]} 22... Nxc3 {[%clk 0:00:59.8]} 23. Nxc3 {[%clk 0:01:22.9]} 23... Qd4
{[%clk 0:00:49.9]} 24. Nd1 {[%clk 0:01:20]} 24... Qd7 {[%clk 0:00:49.5]} 25.
Bxc6 {[%clk 0:01:13.8]} 25... Qd8 {[%clk 0:00:45.5]} 26. Ne3 {[%clk 0:01:01]}
26... e4 {[%clk 0:00:39]} 27. dxe4 {[%clk 0:00:55.5]} 27... Be6 {[%clk
0:00:33.3]} 28. Rf1 {[%clk 0:00:44.1]} 28... Qc7 {[%clk 0:00:32.9]} 29. Nd5
{[%clk 0:00:35.6]} 29... Qxg3+ {[%clk 0:00:32]} 30. Kd2 {[%clk 0:00:30.1]} 30...
Bxh4 {[%clk 0:00:29.9]} 31. Rg1 {[%clk 0:00:26.1]} 31... Bg5+ {[%clk 0:00:30]}
32. Kd1 {[%clk 0:00:22.5]} 32... Qxg1+ {[%clk 0:00:30.1]} 33. Qe1 {[%clk
0:00:17.7]} 33... Bg4# {[%clk 0:00:30.1]} 0-1

[Event "Late-Titled-Tuesday-Blitz-April-30-2024"]
[Site "Chess.com"]
[Date "2024.04.30"]
[Round "11"]
[White "kleber2007"]
[Black "ChEsper99"]
[Result "1-0"]
[WhiteElo "2500"]
[BlackElo "2270"]
[TimeControl "180+1"]
[EndTime "16:03:50 PDT"]
[Termination "kleber2007 won by resignation"]

1. Nf3 {[%clk 0:03:00.9]} 1... Nf6 {[%clk 0:02:57.8]} 2. g3 {[%clk 0:03:00.9]}
2... d5 {[%clk 0:02:56]} 3. Bg2 {[%clk 0:03:00.7]} 3... g6 {[%clk 0:02:55.4]} 4.
b3 {[%clk 0:03:00]} 4... Bg7 {[%clk 0:02:55.4]} 5. Bb2 {[%clk 0:03:00.5]} 5...
O-O {[%clk 0:02:55.9]} 6. O-O {[%clk 0:02:59.6]} 6... c6 {[%clk 0:02:53.1]} 7.
c4 {[%clk 0:02:59.2]} 7... Bg4 {[%clk 0:02:41.9]} 8. d3 {[%clk 0:02:58.8]} 8...
Nbd7 {[%clk 0:02:39.2]} 9. Nbd2 {[%clk 0:02:55.5]} 9... Re8 {[%clk 0:02:35.3]}
10. h3 {[%clk 0:02:52.2]} 10... Bxf3 {[%clk 0:02:33.6]} 11. Nxf3 {[%clk
0:02:53.1]} 11... e5 {[%clk 0:02:30.6]} 12. cxd5 {[%clk 0:02:52.5]} 12... cxd5
{[%clk 0:02:18.8]} 13. e3 {[%clk 0:02:49.5]} 13... Rc8 {[%clk 0:02:17.4]} 14.
Rc1 {[%clk 0:02:48.2]} 14... Qe7 {[%clk 0:01:44.8]} 15. Rxc8 {[%clk 0:02:41]}
15... Rxc8 {[%clk 0:01:44.7]} 16. Qa1 {[%clk 0:02:41.7]} 16... Ne8 {[%clk
0:01:41.4]} 17. Rc1 {[%clk 0:02:40]} 17... Rxc1+ {[%clk 0:01:36.1]} 18. Qxc1
{[%clk 0:02:40.9]} 18... h6 {[%clk 0:00:43.5]} 19. Qc8 {[%clk 0:02:28.2]} 19...
b6 {[%clk 0:00:15.1]} 20. Nd2 {[%clk 0:02:00.2]} 20... Nf6 {[%clk 0:00:10.7]}
21. a3 {[%clk 0:01:51.9]} 21... Kh7 {[%clk 0:00:09.8]} 22. g4 {[%clk 0:01:45.6]}
22... Qd7 {[%clk 0:00:09.6]} 23. Qxd7 {[%clk 0:01:43]} 23... Nxd7 {[%clk
0:00:10.5]} 24. Bxd5 {[%clk 0:01:43]} 24... Nc5 {[%clk 0:00:08.4]} 25. Bxf7
{[%clk 0:01:33.7]} 25... Nd6 {[%clk 0:00:07.3]} 26. Bc4 {[%clk 0:01:25.1]} 26...
b5 {[%clk 0:00:07.3]} 27. Bd5 {[%clk 0:01:16]} 27... Nxd3 {[%clk 0:00:07.7]} 28.
Bc3 {[%clk 0:01:10.6]} 28... Nc5 {[%clk 0:00:03.3]} 29. h4 {[%clk 0:00:55.8]}
29... a6 {[%clk 0:00:03.5]} 30. h5 {[%clk 0:00:55]} 30... gxh5 {[%clk
0:00:03.6]} 31. gxh5 {[%clk 0:00:55.9]} 31... Bf6 {[%clk 0:00:03.8]} 32. Bb4
{[%clk 0:00:50.4]} 32... Ncb7 {[%clk 0:00:03.4]} 33. Ne4 {[%clk 0:00:49.5]}
33... Nxe4 {[%clk 0:00:02.9]} 34. Bxe4+ {[%clk 0:00:50.4]} 1-0

[Event "Late-Titled-Tuesday-Blitz-April-30-2024"]
[Site "Chess.com"]
[Date "2024.04.30"]
[Round "11"]
[White "SVijayalakshmi"]
[Black "Anton_Demchenko"]
[Result "0-1"]
[WhiteElo "2573"]
[BlackElo "2878"]
[TimeControl "180+1"]
[EndTime "16:03:53 PDT"]
[Termination "Anton_Demchenko won by checkmate"]

1. d4 {[%clk 0:02:52.6]} 1... Nf6 {[%clk 0:03:00.6]} 2. c4 {[%clk 0:02:51.9]}
2... d6 {[%clk 0:03:01.2]} 3. Nc3 {[%clk 0:02:51.9]} 3... e5 {[%clk 0:03:01.3]}
4. dxe5 {[%clk 0:02:51.7]} 4... dxe5 {[%clk 0:03:02.2]} 5. Qxd8+ {[%clk
0:02:52]} 5... Kxd8 {[%clk 0:03:03.1]} 6. Nf3 {[%clk 0:02:52.5]} 6... Nc6 {[%clk
0:03:03.4]} 7. Bg5 {[%clk 0:02:51.3]} 7... Be6 {[%clk 0:03:03.6]} 8. O-O-O+
{[%clk 0:02:49.6]} 8... Kc8 {[%clk 0:03:04.2]} 9. e4 {[%clk 0:02:47.6]} 9... Nd7
{[%clk 0:03:03.6]} 10. Be2 {[%clk 0:02:43]} 10... f6 {[%clk 0:03:04.1]} 11. Be3
{[%clk 0:02:42.4]} 11... Bc5 {[%clk 0:02:57.2]} 12. Rd2 {[%clk 0:02:34.2]} 12...
Bxe3 {[%clk 0:02:51.2]} 13. fxe3 {[%clk 0:02:34]} 13... Nc5 {[%clk 0:02:51.9]}
14. Rhd1 {[%clk 0:02:31.5]} 14... a5 {[%clk 0:02:48.6]} 15. Nh4 {[%clk
0:02:23.5]} 15... a4 {[%clk 0:02:37.7]} 16. Nf5 {[%clk 0:02:22]} 16... g6 {[%clk
0:01:49.2]} 17. Nh6 {[%clk 0:02:17.6]} 17... Na5 {[%clk 0:01:36.3]} 18. Ng4
{[%clk 0:02:07.8]} 18... Rf8 {[%clk 0:01:26.9]} 19. Nxf6 {[%clk 0:02:06.4]}
19... Nab3+ {[%clk 0:01:26.8]} 20. axb3 {[%clk 0:01:56]} 20... Nxb3+ {[%clk
0:01:27.3]} 21. Kc2 {[%clk 0:01:53.8]} 21... Nxd2 {[%clk 0:01:27.5]} 22. Nxh7
{[%clk 0:01:46]} 22... Rh8 {[%clk 0:01:07.8]} 23. Ng5 {[%clk 0:01:45.4]} 23...
Nxc4 {[%clk 0:01:08.5]} 24. Nxe6 {[%clk 0:01:37.9]} 24... Nxe3+ {[%clk
0:01:08.4]} 25. Kd3 {[%clk 0:01:32.5]} 25... Nxd1 {[%clk 0:01:08.4]} 26. Bxd1
{[%clk 0:01:32.7]} 26... Rxh2 {[%clk 0:01:04]} 27. Bf3 {[%clk 0:01:28.9]} 27...
c6 {[%clk 0:00:52.6]} 28. Kc4 {[%clk 0:01:21.9]} 28... Rh1 {[%clk 0:00:42.6]}
29. Nf8 {[%clk 0:01:06.1]} 29... Kc7 {[%clk 0:00:30.5]} 30. Nxg6 {[%clk
0:01:05.9]} 30... b5+ {[%clk 0:00:31]} 31. Kb4 {[%clk 0:00:58.4]} 31... Kb6
{[%clk 0:00:29.4]} 32. Ne2 {[%clk 0:00:46.7]} 32... c5+ {[%clk 0:00:23.3]} 33.
Ka3 {[%clk 0:00:43.8]} 33... b4+ {[%clk 0:00:23.1]} 34. Ka2 {[%clk 0:00:43.8]}
34... b3+ {[%clk 0:00:12.5]} 35. Ka3 {[%clk 0:00:43.4]} 35... Ra1# {[%clk
0:00:11.4]} 0-1

[Event "Late-Titled-Tuesday-Blitz-April-30-2024"]
[Site "Chess.com"]
[Date "2024.04.30"]
[Round "11"]
[White "NovakRatko"]
[Black "manitodeplomo"]
[Result "0-1"]
[WhiteElo "2425"]
[BlackElo "2629"]
[TimeControl "180+1"]
[EndTime "16:03:55 PDT"]
[Termination "manitodeplomo won on time"]

1. d4 {[%clk 0:02:53.3]} 1... c5 {[%clk 0:02:59.2]} 2. dxc5 {[%clk 0:02:53.3]}
2... Qa5+ {[%clk 0:02:58.2]} 3. Nc3 {[%clk 0:02:53.1]} 3... Nf6 {[%clk 0:02:58]}
4. e4 {[%clk 0:02:53.1]} 4... Nxe4 {[%clk 0:02:57.1]} 5. Ne2 {[%clk 0:02:50.8]}
5... Nxc3 {[%clk 0:02:53.6]} 6. Nxc3 {[%clk 0:02:50.4]} 6... Qxc5 {[%clk
0:02:53.4]} 7. Be3 {[%clk 0:02:50.6]} 7... Qa5 {[%clk 0:02:52]} 8. a3 {[%clk
0:02:50.4]} 8... Nc6 {[%clk 0:02:50.1]} 9. b4 {[%clk 0:02:49.4]} 9... Qd8 {[%clk
0:02:50.1]} 10. Bc4 {[%clk 0:02:46.6]} 10... e6 {[%clk 0:02:49.8]} 11. b5 {[%clk
0:02:45.9]} 11... Na5 {[%clk 0:02:49.5]} 12. Bd3 {[%clk 0:02:43.3]} 12... b6
{[%clk 0:02:49.2]} 13. O-O {[%clk 0:02:43.3]} 13... Bb7 {[%clk 0:02:48.9]} 14.
Qg4 {[%clk 0:02:40.8]} 14... Rc8 {[%clk 0:02:47.2]} 15. Ne4 {[%clk 0:02:39.3]}
15... f5 {[%clk 0:02:45.1]} 16. Nd6+ {[%clk 0:02:08.1]} 16... Bxd6 {[%clk
0:02:35.1]} 17. Qxg7 {[%clk 0:02:08.1]} 17... Rf8 {[%clk 0:02:31.2]} 18. Be2
{[%clk 0:01:55.6]} 18... Qh4 {[%clk 0:02:18.3]} 19. g3 {[%clk 0:01:22.8]} 19...
Qe4 {[%clk 0:02:11.4]} 20. Bh5+ {[%clk 0:01:21.2]} 20... Kd8 {[%clk 0:02:11.3]}
21. Bg5+ {[%clk 0:01:20.8]} 21... Kc7 {[%clk 0:02:11.2]} 22. f3 {[%clk
0:01:15.7]} 22... Qe5 {[%clk 0:02:02.4]} 23. Qh6 {[%clk 0:01:03.2]} 23... Kb8
{[%clk 0:02:01.2]} 24. Rad1 {[%clk 0:00:52]} 24... Ka8 {[%clk 0:01:29.8]} 25.
Rfe1 {[%clk 0:00:49.4]} 25... Qc5+ {[%clk 0:01:26.9]} 26. Be3 {[%clk 0:00:47.8]}
26... Qc7 {[%clk 0:01:25.4]} 27. Qxh7 {[%clk 0:00:32.6]} 27... Rh8 {[%clk
0:01:16]} 28. Qg6 {[%clk 0:00:32.4]} 28... Rcg8 {[%clk 0:01:15.2]} 29. Qf7
{[%clk 0:00:32.7]} 29... Bxg3 {[%clk 0:01:14.9]} 30. Rxd7 {[%clk 0:00:09]} 30...
Bxe1+ {[%clk 0:01:10.5]} 31. Kf1 {[%clk 0:00:09.5]} 31... Qxh2 {[%clk
0:00:54.8]} 32. Kxe1 {[%clk 0:00:06.1]} 32... Qxh5 {[%clk 0:00:51.6]} 33. Rxb7
{[%clk 0:00:04.1]} 33... Nxb7 {[%clk 0:00:50.1]} 34. Qxe6 {[%clk 0:00:04.1]}
34... Qxf3 {[%clk 0:00:48.4]} 0-1

[Event "Late-Titled-Tuesday-Blitz-April-30-2024"]
[Site "Chess.com"]
[Date "2024.04.30"]
[Round "11"]
[White "katharinareinecke"]
[Black "Sesleria"]
[Result "1/2-1/2"]
[WhiteElo "2026"]
[BlackElo "2089"]
[TimeControl "180+1"]
[EndTime "16:03:55 PDT"]
[Termination "Game drawn by repetition"]

1. d4 {[%clk 0:03:00.9]} 1... d5 {[%clk 0:02:51.4]} 2. Nf3 {[%clk 0:02:59.9]}
2... Nf6 {[%clk 0:02:49.4]} 3. g3 {[%clk 0:02:57.2]} 3... c6 {[%clk 0:02:48.7]}
4. Bg2 {[%clk 0:02:56.2]} 4... Bf5 {[%clk 0:02:48.7]} 5. O-O {[%clk 0:02:51.9]}
5... e6 {[%clk 0:02:49]} 6. c4 {[%clk 0:02:49.3]} 6... h6 {[%clk 0:02:48.6]} 7.
b3 {[%clk 0:02:41.1]} 7... Be7 {[%clk 0:02:44.6]} 8. Bb2 {[%clk 0:02:40.5]} 8...
O-O {[%clk 0:02:44.5]} 9. Nbd2 {[%clk 0:02:37.3]} 9... Ne4 {[%clk 0:02:37.6]}
10. Nxe4 {[%clk 0:02:35.1]} 10... Bxe4 {[%clk 0:02:38]} 11. Nd2 {[%clk 0:02:34]}
11... Bxg2 {[%clk 0:02:38.1]} 12. Kxg2 {[%clk 0:02:34.9]} 12... Bf6 {[%clk
0:02:36.8]} 13. e3 {[%clk 0:02:33.4]} 13... c5 {[%clk 0:02:35.1]} 14. cxd5
{[%clk 0:02:30]} 14... Qxd5+ {[%clk 0:02:29]} 15. Nf3 {[%clk 0:02:25.8]} 15...
Rd8 {[%clk 0:02:26]} 16. Rb1 {[%clk 0:01:58.8]} 16... cxd4 {[%clk 0:02:23.4]}
17. Bxd4 {[%clk 0:01:58.3]} 17... Bxd4 {[%clk 0:02:19.9]} 18. Qxd4 {[%clk
0:01:58.2]} 18... Nc6 {[%clk 0:02:20.2]} 19. Qxd5 {[%clk 0:01:57.3]} 19... Rxd5
{[%clk 0:02:20.6]} 20. Rfd1 {[%clk 0:01:55.7]} 20... Rad8 {[%clk 0:02:20.1]} 21.
Rxd5 {[%clk 0:01:47.3]} 21... Rxd5 {[%clk 0:02:21]} 22. Rc1 {[%clk 0:01:44.6]}
22... g5 {[%clk 0:02:15.3]} 23. Kf1 {[%clk 0:01:35.1]} 23... Kf8 {[%clk
0:01:51.2]} 24. Ke2 {[%clk 0:01:32]} 24... Ke7 {[%clk 0:01:50.6]} 25. h4 {[%clk
0:01:24.9]} 25... g4 {[%clk 0:01:32.5]} 26. Ne1 {[%clk 0:01:21.2]} 26... Ne5
{[%clk 0:00:50.6]} 27. Rc7+ {[%clk 0:01:15.6]} 27... Rd7 {[%clk 0:00:50.5]} 28.
Rxd7+ {[%clk 0:01:10.5]} 28... Kxd7 {[%clk 0:00:51.4]} 29. Nd3 {[%clk
0:01:09.7]} 29... Nxd3 {[%clk 0:00:46]} 30. Kxd3 {[%clk 0:01:09.8]} 30... Kd6
{[%clk 0:00:46.4]} 31. e4 {[%clk 0:01:06.7]} 31... Ke5 {[%clk 0:00:33.9]} 32.
Ke3 {[%clk 0:01:06.7]} 32... h5 {[%clk 0:00:31.9]} 33. a3 {[%clk 0:00:59.5]}
33... f5 {[%clk 0:00:31]} 34. exf5 {[%clk 0:00:57.8]} 34... exf5 {[%clk
0:00:31.9]} 35. f3 {[%clk 0:00:54.2]} 35... a6 {[%clk 0:00:17.2]} 36. fxg4
{[%clk 0:00:54]} 36... fxg4 {[%clk 0:00:16.8]} 37. a4 {[%clk 0:00:51.2]} 37...
a5 {[%clk 0:00:16]} 38. Kd3 {[%clk 0:00:50.8]} 38... Kd5 {[%clk 0:00:14.1]} 39.
Ke3 {[%clk 0:00:48.5]} 39... Ke5 {[%clk 0:00:10.7]} 40. Kd3 {[%clk 0:00:47.8]}
40... Kd5 {[%clk 0:00:09.8]} 41. Ke3 {[%clk 0:00:46.6]} 41... Ke5 {[%clk
0:00:09.9]} 1/2-1/2